fUST/lending_fUST_20240624
["ID","MTS","AMOUNT","RATE_DAILY","PERIOD"]
[330211021,1719166241830,-1103.16,0.00016438,2]
[330211022,1719166241840,-500.0,0.00016438,2]
[330211023,1719166241850,-642.82,0.00016438,2]
[330211024,1719166241990,-500.0,0.00016438,2]
[330211025,1719166242001,-577.25197636,0.00016438,2]
[330211026,1719166242011,-201.109861,0.00016438,2]
[330211027,1719166242020,-99.49292609,0.00016438,2]
[330211028,1719166242033,-101.61693491,0.00016438,2]
[330211029,1719166242043,-1422.26,0.00016438,2]
[330211030,1719166242052,-500.0,0.00016438,2]
[330211031,1719166242062,-596.92,0.00016438,2]
[330211032,1719166242073,-500.0,0.00016438,2]
[330211033,1719166242082,-1468.33,0.00016438,2]
[330211034,1719166242093,-201.109861,0.00016438,2]
[330211035,1719166242103,-201.109861,0.00016438,2]
[330211036,1719166242111,-1704.57792961,0.00016438,2]
[330211037,1719166242403,-5738.90207039,0.00016438,2]
[330211038,1719166242412,-730.8,0.00016438,2]
[330211039,1719166242422,-606.94013411,0.00016438,2]
[330211040,1719166242431,-151.0,0.00016438,2]
[330211041,1719166242441,-151.0,0.00016438,2]
[330211042,1719166242451,-623.94169643,0.00016438,2]
[330211043,1719166242460,-417.878803,0.00016438,2]
[330211044,1719166242469,-417.878803,0.00016438,2]
[330211045,1719166242478,-1135.55,0.00016438,2]
[330211046,1719166242487,-606.72,0.00016438,2]
[330211047,1719166242496,-500.0,0.00016438,2]
[330211048,1719166242506,-500.0,0.00016438,2]
[330211049,1719166242515,-417.878803,0.00016438,2]
[330211050,1719166242524,-417.878803,0.00016438,2]
[330211051,1719166242533,-500.0,0.00016438,2]
[330211052,1719166242543,-560.32,0.00016438,2]
[330211053,1719166242554,-352.75364752,0.00016438,2]
[330211054,1719166242565,-500.0,0.00016438,2]
[330211055,1719166242574,-1746.83,0.00016438,2]
[330211056,1719166242583,-513.12,0.00016438,2]
[330211057,1719166242593,-653.49,0.00016438,2]
[330211058,1719166242603,-500.0,0.00016438,2]
[330211059,1719166242623,-947.46,0.00016438,2]
[330211060,1719166242636,-947.46,0.00016438,2]
[330211061,1719166242646,-947.46,0.00016438,2]
[330211062,1719166242656,-947.46,0.00016438,2]
[330211063,1719166242666,-1382.69,0.00016438,2]
[330211064,1719166242676,-947.46,0.00016438,2]
[330211065,1719166242686,-500.0,0.00016438,2]
[330211066,1719166242696,-947.46,0.00016438,2]
[330211067,1719166242705,-947.46,0.00016438,2]
[330211068,1719166242715,-947.46,0.00016438,2]
[330211069,1719166242725,-947.46,0.00016438,2]
[330211070,1719166242735,-947.46,0.00016438,2]
[330211071,1719166242744,-947.46,0.00016438,2]
[330211072,1719166242756,-549.06,0.00016438,2]
[330211073,1719166242765,-848.55,0.00016438,2]
[330211074,1719166242775,-2212.9,0.00016438,2]
[330211075,1719166242785,-329.54253933,0.00016438,2]
[330211076,1719166242795,-1523.8,0.00016438,2]
[330211077,1719166242804,-2140.78,0.00016438,2]
[330211078,1719166242814,-3403.0,0.00016438,2]
[330211079,1719166242824,-514.90966403,0.00016438,2]
[330211080,1719166242834,-7726.87,0.00016438,2]
[330211081,1719166242844,-1226.24,0.00016438,2]
[330211082,1719166242853,-500.0,0.00016438,2]
[330211083,1719166242863,-5138.91,0.00016438,2]
[330211084,1719166242873,-4280.99,0.00016438,2]
[330211085,1719166242882,-500.0,0.00016438,2]
[330211086,1719166242892,-151.0,0.00016438,2]
[330211087,1719166242901,-232.832029,0.00016438,2]
[330211088,1719166242911,-500.0,0.00016438,2]
[330211089,1719166242922,-7191.69733165,0.00016438,2]
[330211090,1719166242936,-12455.7242202,0.00016438,2]
[330211091,1719166242967,-1251.4726332,0.00016438,2]
[330211092,1719166242979,-619.71305479,0.00016438,2]
[330211093,1719166242990,-261.546,0.00016438,2]
[330211124,1719166244188,-2894.51220071,0.00016438,2]
[330211131,1719166246700,-159.70589002,0.00016404,2]
[330211132,1719166246709,-41.74455945,0.00016438,2]
[330211133,1719166246719,-500.0,0.00016438,2]
[330211134,1719166246730,-532.1985239,0.00016438,2]
[330211146,1719166569057,500.0,0.00023,10]
[330211147,1719166579766,500.0,0.00023,10]
[330211148,1719166599310,500.0,0.00023,10]
[330211150,1719166613150,500.0,0.00023,10]
[330211151,1719166623084,500.0,0.00023,10]
[330211153,1719166631662,500.0,0.00023,10]
[330211154,1719166642636,500.0,0.00023,10]
[330211155,1719166652823,500.0,0.00023,10]
[330211156,1719166675173,583.23,0.00023,10]
[330211181,1719167432500,-300.0,0.00014691,2]
[330211182,1719167432510,-507.53147836,0.00014776,2]
[330211183,1719167432519,-3000.0,0.00014876,2]
[330211184,1719167432529,-269.920068,0.00014946,2]
[330211185,1719167432538,-24900.0,0.00015094,2]
[330211186,1719167432548,-190.58341641,0.00015149,2]
[330211187,1719167432557,-507.53147836,0.00015154,2]
[330211188,1719167432566,-2441.08739548,0.00015486,2]
[330211189,1719167432578,-413.14185499,0.00015486,2]
[330211190,1719167432588,-1091.25236623,0.00015487,2]
[330211191,1719167432597,-507.53147836,0.00015531,2]
[330211192,1719167432607,-2128.88510458,0.00015587,2]
[330211193,1719167432617,-300.24927175,0.0001559,2]
[330211194,1719167432627,-2040.5580749,0.00015661,2]
[330211195,1719167432637,-842.54666328,0.00015722,2]
[330211196,1719167432648,-5312.83518591,0.00015883,2]
[330211197,1719167432659,-260.03157252,0.00015883,2]
[330211266,1719167438716,-1007.68957394,0.00014117,2]
[330211270,1719167438736,-1612.90705296,0.00014117,2]
[330211273,1719167438755,-36602.5407718,0.00015883,2]
[330211276,1719167438765,-1085.81899386,0.00015883,2]
[330211279,1719167438775,-516.72213415,0.00015883,2]
[330211282,1719167438786,-154.83742071,0.00015899,2]
[330211285,1719167438796,-402.58396579,0.00015899,2]
[330211287,1719167438806,-402.58396579,0.00015899,2]
[330211289,1719167438817,-205.6831939,0.000159,2]
[330211291,1719167438827,-10000.0,0.000159,2]
[330211293,1719167438837,-507.53147836,0.00015909,2]
[330211295,1719167438848,-2115.0148568,0.00015934,2]
[330211297,1719167438858,-1102.77481401,0.00015934,2]
[330211299,1719167438868,-179.51789787,0.00016001,2]
[330211301,1719167438878,-626.91764322,0.00016001,2]
[330211303,1719167438888,-154.83742071,0.00016043,2]
[330211305,1719167438899,-723.68394442,0.00016082,2]
[330211306,1719167438909,-154.83742071,0.00016134,2]
[330211308,1719167438919,-420.0,0.0001616,2]
[330211310,1719167438929,-1312.82746859,0.00016192,2]
[330211312,1719167438939,-597.61557581,0.00016192,2]
[330211314,1719167438950,-507.53147836,0.00016286,2]
[330211316,1719167438960,-205.34002923,0.00016338,2]
[330211318,1719167438975,-2000.0,0.00016338,2]
[330211320,1719167438985,-157.16850522,0.00016376,2]
[330211322,1719167438997,-154.83742071,0.00016376,2]
[330211324,1719167439008,-154.83742071,0.00016376,2]
[330211326,1719167439018,-154.83742071,0.00016376,2]
[330211328,1719167439028,-156.42887627,0.00016376,2]
[330211330,1719167439039,-200.39305822,0.00016376,2]
[330211332,1719167439050,-154.83742071,0.00016376,2]
[330211333,1719167439061,-531.01956017,0.00016377,2]
[330211335,1719167439072,-154.83742071,0.00016379,2]
[330211337,1719167439083,-195.45518522,0.00016382,2]
[330211339,1719167439094,-490.22115977,0.00016401,2]
[330211341,1719167439105,-154.83742071,0.00016401,2]
[330211343,1719167439115,-527.87878285,0.00016401,2]
[330211345,1719167439125,-154.83742071,0.00016404,2]
[330211347,1719167439135,-572.14164278,0.00016404,2]
[330211349,1719167439145,-5277.56392113,0.00016405,2]
[330211350,1719167439155,-401.59956828,0.00016413,2]
[330211351,1719167439165,-175.97073239,0.00016413,2]
[330211352,1719167439176,-154.83742071,0.00016414,2]
[330211353,1719167439186,-154.83742071,0.00016414,2]
[330211354,1719167439196,-154.83742071,0.00016415,2]
[330211355,1719167439206,-154.83742071,0.00016415,2]
[330211356,1719167439216,-154.83742071,0.00016437,2]
[330211357,1719167439227,-500.0,0.00016438,2]
[330211359,1719167439244,-500.0,0.00016438,2]
[330211361,1719167439253,-500.0,0.00016438,2]
[330211363,1719167439267,-501.15,0.00016438,2]
[330211365,1719167439277,-527.21023559,0.00016438,2]
[330211367,1719167439287,-500.0,0.00016438,2]
[330211368,1719167439296,-500.0,0.00016438,2]
[330211371,1719167439306,-500.0,0.00016438,2]
[330211372,1719167439316,-605.65,0.00016438,2]
[330211375,1719167439327,-513.6054187,0.00016438,2]
[330211376,1719167439336,-500.0,0.00016438,2]
[330211378,1719167439346,-500.0,0.00016438,2]
[330211380,1719167439356,-500.0,0.00016438,2]
[330211382,1719167439366,-500.0,0.00016438,2]
[330211384,1719167439376,-500.0,0.00016438,2]
[330211386,1719167439386,-500.0,0.00016438,2]
[330211388,1719167439396,-500.0,0.00016438,2]
[330211390,1719167439407,-500.0,0.00016438,2]
[330211392,1719167439417,-500.0,0.00016438,2]
[330211394,1719167439427,-500.0,0.00016438,2]
[330211396,1719167439437,-460.89676275,0.00016438,2]
[330211398,1719167439448,-500.0,0.00016438,2]
[330211400,1719167439459,-631.07,0.00016438,2]
[330211402,1719167439469,-500.0,0.00016438,2]
[330211404,1719167439479,-500.0,0.00016438,2]
[330211406,1719167439499,-806.32,0.00016438,2]
[330211407,1719167439509,-500.0,0.00016438,2]
[330211409,1719167439519,-500.0,0.00016438,2]
[330211411,1719167439529,-500.0,0.00016438,2]
[330211413,1719167439540,-500.0,0.00016438,2]
[330211414,1719167439550,-500.0,0.00016438,2]
[330211415,1719167439560,-500.0,0.00016438,2]
[330211416,1719167439570,-716.61,0.00016438,2]
[330211417,1719167439581,-500.0,0.00016438,2]
[330211418,1719167439591,-500.0,0.00016438,2]
[330211419,1719167439601,-500.0,0.00016438,2]
[330211420,1719167439613,-500.0,0.00016438,2]
[330211421,1719167439623,-500.0,0.00016438,2]
[330211422,1719167439632,-500.0,0.00016438,2]
[330211423,1719167439642,-500.0,0.00016438,2]
[330211424,1719167439652,-500.0,0.00016438,2]
[330211425,1719167439662,-500.0,0.00016438,2]
[330211426,1719167439672,-500.0,0.00016438,2]
[330211427,1719167439683,-500.0,0.00016438,2]
[330211428,1719167439693,-509.07342528,0.00016438,2]
[330211429,1719167439703,-394.67258808,0.00016438,2]
[330211430,1719167439714,-500.0,0.00016438,2]
[330211431,1719167439725,-414.72409518,0.00016438,2]
[330211432,1719167439741,-500.0,0.00016438,2]
[330211433,1719167439757,-577.25,0.00016438,2]
[330211434,1719167439768,-500.0,0.00016438,2]
[330211435,1719167439778,-500.0,0.00016438,2]
[330211436,1719167439788,-500.0,0.00016438,2]
[330211437,1719167439799,-508.5865464,0.00016438,2]
[330211438,1719167439809,-500.0,0.00016438,2]
[330211439,1719167439819,-500.0,0.00016438,2]
[330211440,1719167439828,-500.0,0.00016438,2]
[330211441,1719167439837,-500.0,0.00016438,2]
[330211442,1719167439848,-500.0,0.00016438,2]
[330211443,1719167439858,-1691.3,0.00016438,2]
[330211444,1719167439868,-1076.29,0.00016438,2]
[330211445,1719167439877,-500.0,0.00016438,2]
[330211446,1719167439887,-500.0,0.00016438,2]
[330211447,1719167439898,-689.81,0.00016438,2]
[330211448,1719167439908,-178.65397086,0.00016438,2]
[330211449,1719167439919,-154.54983412,0.00016438,2]
[330211450,1719167439930,-596.73,0.00016438,2]
[330211451,1719167439940,-500.0,0.00016438,2]
[330211452,1719167439950,-500.0,0.00016438,2]
[330211453,1719167439960,-512.75522129,0.00016438,2]
[330211454,1719167439975,-500.0,0.00016438,2]
[330211455,1719167439985,-500.0,0.00016438,2]
[330211456,1719167440007,-513.18659974,0.00016438,2]
[330211457,1719167440018,-366.9165513,0.00016438,2]
[330211458,1719167440028,-500.0,0.00016438,2]
[330211459,1719167440038,-500.0,0.00016438,2]
[330211460,1719167440050,-500.0,0.00016438,2]
[330211461,1719167440061,-500.0,0.00016438,2]
[330211462,1719167440071,-447.41771702,0.00016438,2]
[330211463,1719167440082,-500.0,0.00016438,2]
[330211464,1719167440092,-500.0,0.00016438,2]
[330211465,1719167440104,-500.0,0.00016438,2]
[330211466,1719167440115,-500.0,0.00016438,2]
[330211467,1719167440124,-1164.73,0.00016438,2]
[330211468,1719167440134,-500.0,0.00016438,2]
[330211469,1719167440145,-500.0,0.00016438,2]
[330211470,1719167440155,-519.01,0.00016438,2]
[330211471,1719167440165,-663.63,0.00016438,2]
[330211472,1719167440176,-500.0,0.00016438,2]
[330211473,1719167440186,-668.76,0.00016438,2]
[330211474,1719167440197,-500.0,0.00016438,2]
[330211475,1719167440208,-500.0,0.00016438,2]
[330211476,1719167440218,-1157.53,0.00016438,2]
[330211477,1719167440228,-500.0,0.00016438,2]
[330211478,1719167440238,-500.0,0.00016438,2]
[330211481,1719167440249,-578.23,0.00016438,2]
[330211483,1719167440259,-500.0,0.00016438,2]
[330211485,1719167440269,-500.0,0.00016438,2]
[330211488,1719167440279,-1972.42,0.00016438,2]
[330211489,1719167440288,-516.95120687,0.00016438,2]
[330211491,1719167440299,-1648.27,0.00016438,2]
[330211493,1719167440310,-528.081362,0.00016438,2]
[330211498,1719167440320,-500.0,0.00016438,2]
[330211499,1719167440480,-566.3,0.00016438,2]
[330211500,1719167440497,-500.0,0.00016438,2]
[330211501,1719167440512,-500.0,0.00016438,2]
[330211502,1719167440523,-500.0,0.00016438,2]
[330211503,1719167440533,-523.47952944,0.00016438,2]
[330211504,1719167440543,-500.0,0.00016438,2]
[330211506,1719167440553,-500.0,0.00016438,2]
[330211507,1719167440564,-500.0,0.00016438,2]
[330211508,1719167440574,-500.0,0.00016438,2]
[330211509,1719167440585,-500.0,0.00016438,2]
[330211510,1719167440595,-579.50511627,0.00016438,2]
[330211511,1719167440606,-500.0,0.00016438,2]
[330211512,1719167440616,-584.78821387,0.00016438,2]
[330211513,1719167440626,-500.0,0.00016438,2]
[330211514,1719167440636,-503.58,0.00016438,2]
[330211515,1719167440646,-1307.6,0.00016438,2]
[330211516,1719167440656,-500.0,0.00016438,2]
[330211517,1719167440667,-4849.26,0.00016438,2]
[330211518,1719167440677,-510.44059786,0.00016438,2]
[330211520,1719167440695,-1115.55940214,0.00016438,2]
[330211522,1719167440705,-500.0,0.00016438,2]
[330211524,1719167440716,-500.0,0.00016438,2]
[330211526,1719167440726,-1499.81,0.00016438,2]
[330211528,1719167440742,-500.0,0.00016438,2]
[330211530,1719167440758,-500.0,0.00016438,2]
[330211532,1719167440768,-500.0,0.00016438,2]
[330211534,1719167440778,-500.0,0.00016438,2]
[330211536,1719167440789,-500.0,0.00016438,2]
[330211538,1719167440799,-1270.87,0.00016438,2]
[330211540,1719167440808,-500.0,0.00016438,2]
[330211542,1719167440818,-500.0,0.00016438,2]
[330211544,1719167440828,-500.0,0.00016438,2]
[330211546,1719167440839,-167.99217524,0.00016438,2]
[330211548,1719167440849,-500.0,0.00016438,2]
[330211549,1719167440859,-500.0,0.00016438,2]
[330211551,1719167440869,-500.0,0.00016438,2]
[330211553,1719167440879,-500.0,0.00016438,2]
[330211556,1719167440898,-691.16,0.00016438,2]
[330211559,1719167440911,-500.0,0.00016438,2]
[330211561,1719167440922,-500.0,0.00016438,2]
[330211563,1719167440933,-500.0,0.00016438,2]
[330211565,1719167440944,-472.60205159,0.00016438,2]
[330211567,1719167440955,-500.0,0.00016438,2]
[330211569,1719167440969,-2006.79,0.00016438,2]
[330211570,1719167440979,-500.0,0.00016438,2]
[330211571,1719167441000,-516.27778692,0.00016438,2]
[330211572,1719167441011,-555.47457912,0.00016438,2]
[330211573,1719167441022,-449.73124058,0.00016438,2]
[330211574,1719167441033,-2041.43,0.00016438,2]
[330211575,1719167441044,-500.0,0.00016438,2]
[330211576,1719167441054,-500.0,0.00016438,2]
[330211578,1719167441065,-2286.72,0.00016438,2]
[330211580,1719167441075,-500.0,0.00016438,2]
[330211581,1719167441086,-500.0,0.00016438,2]
[330211583,1719167441096,-979.54,0.00016438,2]
[330211585,1719167441106,-426.9345968,0.00016438,2]
[330211587,1719167441116,-500.0,0.00016438,2]
[330211589,1719167441126,-500.0,0.00016438,2]
[330211591,1719167441136,-813.19,0.00016438,2]
[330211592,1719167441147,-500.0,0.00016438,2]
[330211593,1719167441157,-500.0,0.00016438,2]
[330211594,1719167441167,-500.0,0.00016438,2]
[330211595,1719167441177,-512.58302391,0.00016438,2]
[330211596,1719167441188,-437.34671598,0.00016438,2]
[330211597,1719167441198,-533.95,0.00016438,2]
[330211598,1719167441208,-500.0,0.00016438,2]
[330211599,1719167441219,-503.23688875,0.00016438,2]
[330211601,1719167441229,-500.0,0.00016438,2]
[330211604,1719167441249,-500.0,0.00016438,2]
[330211605,1719167441260,-513.51302212,0.00016438,2]
[330211607,1719167441269,-500.0,0.00016438,2]
[330211608,1719167441279,-500.0,0.00016438,2]
[330211609,1719167441289,-500.0,0.00016438,2]
[330211610,1719167441299,-721.52,0.00016438,2]
[330211611,1719167441309,-500.0,0.00016438,2]
[330211612,1719167441320,-500.0,0.00016438,2]
[330211613,1719167441330,-559.56,0.00016438,2]
[330211614,1719167441340,-500.0,0.00016438,2]
[330211615,1719167441350,-500.0,0.00016438,2]
[330211616,1719167441360,-500.0,0.00016438,2]
[330211617,1719167441369,-850.64,0.00016438,2]
[330211618,1719167441380,-500.0,0.00016438,2]
[330211619,1719167441390,-500.0,0.00016438,2]
[330211620,1719167441400,-500.0,0.00016438,2]
[330211621,1719167441410,-1108.2,0.00016438,2]
[330211622,1719167441420,-500.0,0.00016438,2]
[330211623,1719167441430,-1712.84,0.00016438,2]
[330211624,1719167441439,-500.0,0.00016438,2]
[330211625,1719167441448,-500.0,0.00016438,2]
[330211626,1719167441458,-689.4,0.00016438,2]
[330211627,1719167441468,-500.0,0.00016438,2]
[330211628,1719167441478,-500.0,0.00016438,2]
[330211629,1719167441496,-620.72,0.00016438,2]
[330211630,1719167441506,-500.0,0.00016438,2]
[330211631,1719167441516,-500.0,0.00016438,2]
[330211632,1719167441525,-500.0,0.00016438,2]
[330211633,1719167441535,-500.0,0.00016438,2]
[330211634,1719167441544,-500.0,0.00016438,2]
[330211635,1719167441554,-1352.88,0.00016438,2]
[330211636,1719167441563,-6456.79,0.00016438,2]
[330211637,1719167441572,-500.0,0.00016438,2]
[330211638,1719167441581,-500.0,0.00016438,2]
[330211639,1719167441591,-564.29,0.00016438,2]
[330211640,1719167441601,-500.0,0.00016438,2]
[330211641,1719167441610,-539.57,0.00016438,2]
[330211642,1719167441619,-500.0,0.00016438,2]
[330211643,1719167441629,-500.0,0.00016438,2]
[330211644,1719167441638,-500.0,0.00016438,2]
[330211645,1719167441647,-500.0,0.00016438,2]
[330211646,1719167441658,-500.0,0.00016438,2]
[330211647,1719167441667,-1535.59,0.00016438,2]
[330211648,1719167441678,-1567.17,0.00016438,2]
[330211649,1719167441688,-6590.55,0.00016438,2]
[330211650,1719167441699,-1455.42,0.00016438,2]
[330211651,1719167441710,-597.88,0.00016438,2]
[330211652,1719167441720,-490.01253011,0.00016438,2]
[330211653,1719167441730,-151.0,0.00016438,2]
[330211654,1719167441755,-602.30218195,0.00016438,2]
[330211655,1719167441765,-582.32,0.00016438,2]
[330211656,1719167441778,-37462.3,0.00016438,2]
[330211657,1719167441789,-685.17,0.00016438,2]
[330211658,1719167441799,-513.60575091,0.00016438,2]
[330211659,1719167441808,-500.0,0.00016438,2]
[330211660,1719167441817,-500.0,0.00016438,2]
[330211661,1719167441827,-500.0,0.00016438,2]
[330211662,1719167441838,-512.20271342,0.00016438,2]
[330211663,1719167441848,-500.0,0.00016438,2]
[330211664,1719167441859,-151.0,0.00016438,2]
[330211665,1719167441869,-1819.39,0.00016438,2]
[330211666,1719167441878,-2870.51,0.00016438,2]
[330211667,1719167441888,-500.0,0.00016438,2]
[330211668,1719167441898,-3566.34,0.00016438,2]
[330211669,1719167441909,-500.0,0.00016438,2]
[330211670,1719167441920,-699.71,0.00016438,2]
[330211671,1719167441930,-858.13,0.00016438,2]
[330211672,1719167441940,-500.0,0.00016438,2]
[330211673,1719167441949,-500.0,0.00016438,2]
[330211674,1719167441960,-969.14,0.00016438,2]
[330211675,1719167441973,-500.0,0.00016438,2]
[330211676,1719167441983,-1161.74,0.00016438,2]
[330211677,1719167442001,-7184.37,0.00016438,2]
[330211678,1719167442011,-734.16,0.00016438,2]
[330211679,1719167442021,-500.0,0.00016438,2]
[330211680,1719167442030,-541.70945954,0.00016438,2]
[330211681,1719167442040,-500.0,0.00016438,2]
[330211682,1719167442051,-500.0,0.00016438,2]
[330211683,1719167442061,-500.0,0.00016438,2]
[330211684,1719167442070,-508.7203825,0.00016438,2]
[330211685,1719167442079,-500.0,0.00016438,2]
[330211686,1719167442088,-699.16,0.00016438,2]
[330211687,1719167442097,-1438.99,0.00016438,2]
[330211688,1719167442107,-500.0,0.00016438,2]
[330211689,1719167442116,-590.36,0.00016438,2]
[330211690,1719167442126,-500.0,0.00016438,2]
[330211691,1719167442135,-500.0,0.00016438,2]
[330211692,1719167442145,-500.0,0.00016438,2]
[330211693,1719167442155,-500.0,0.00016438,2]
[330211694,1719167442164,-1057.2,0.00016438,2]
[330211695,1719167442173,-696.05,0.00016438,2]
[330211696,1719167442184,-766.17,0.00016438,2]
[330211697,1719167442193,-625.07,0.00016438,2]
[330211698,1719167442203,-7387.21,0.00016438,2]
[330211699,1719167442212,-500.0,0.00016438,2]
[330211700,1719167442222,-500.0,0.00016438,2]
[330211701,1719167442232,-500.0,0.00016438,2]
[330211702,1719167442251,-1362.64,0.00016438,2]
[330211703,1719167442260,-1216.8,0.00016438,2]
[330211704,1719167442269,-500.0,0.00016438,2]
[330211705,1719167442278,-151.0,0.00016438,2]
[330211706,1719167442287,-1363.0,0.00016438,2]
[330211707,1719167442296,-500.0,0.00016438,2]
[330211708,1719167442306,-151.0,0.00016438,2]
[330211709,1719167442315,-1407.15,0.00016438,2]
[330211710,1719167442325,-500.0,0.00016438,2]
[330211711,1719167442334,-500.0,0.00016438,2]
[330211712,1719167442344,-500.0,0.00016438,2]
[330211713,1719167442353,-500.0,0.00016438,2]
[330211714,1719167442362,-500.0,0.00016438,2]
[330211715,1719167442372,-500.0,0.00016438,2]
[330211716,1719167442382,-843.83,0.00016438,2]
[330211717,1719167442391,-526.18,0.00016438,2]
[330211718,1719167442402,-572.05,0.00016438,2]
[330211719,1719167442411,-500.0,0.00016438,2]
[330211720,1719167442421,-4544.75,0.00016438,2]
[330211721,1719167442430,-500.0,0.00016438,2]
[330211722,1719167442440,-500.0,0.00016438,2]
[330211723,1719167442449,-500.0,0.00016438,2]
[330211724,1719167442459,-500.0,0.00016438,2]
[330211725,1719167442469,-500.0,0.00016438,2]
[330211726,1719167442478,-626.26,0.00016438,2]
[330211727,1719167442496,-3261.21,0.00016438,2]
[330211728,1719167442506,-151.0,0.00016438,2]
[330211729,1719167442515,-519.6408046,0.00016438,2]
[330211730,1719167442525,-2120.69,0.00016438,2]
[330211731,1719167442535,-500.0,0.00016438,2]
[330211732,1719167442544,-500.0,0.00016438,2]
[330211733,1719167442554,-1460.31,0.00016438,2]
[330211734,1719167442563,-4924.79,0.00016438,2]
[330211735,1719167442572,-500.0,0.00016438,2]
[330211736,1719167442582,-513.21,0.00016438,2]
[330211737,1719167442592,-513.21,0.00016438,2]
[330211738,1719167442602,-500.0,0.00016438,2]
[330211739,1719167442612,-513.21,0.00016438,2]
[330211740,1719167442621,-513.21,0.00016438,2]
[330211741,1719167442631,-513.21,0.00016438,2]
[330211742,1719167442641,-536.97,0.00016438,2]
[330211743,1719167442651,-955.24,0.00016438,2]
[330211744,1719167442660,-513.21,0.00016438,2]
[330211745,1719167442669,-513.21,0.00016438,2]
[330211746,1719167442679,-513.21,0.00016438,2]
[330211747,1719167442688,-513.21,0.00016438,2]
[330211748,1719167442698,-581.44,0.00016438,2]
[330211749,1719167442708,-513.21,0.00016438,2]
[330211750,1719167442718,-500.0,0.00016438,2]
[330211751,1719167442727,-350.25959646,0.00016438,2]
[330211752,1719167442744,-23686.56,0.00016438,2]
[330211753,1719167442753,-500.0,0.00016438,2]
[330211754,1719167442763,-616.03,0.00016438,2]
[330211755,1719167442772,-151.0,0.00016438,2]
[330211756,1719167442782,-500.0,0.00016438,2]
[330211757,1719167442792,-1175.14,0.00016438,2]
[330211758,1719167442802,-500.0,0.00016438,2]
[330211759,1719167442812,-500.0,0.00016438,2]
[330211760,1719167442822,-500.0,0.00016438,2]
[330211761,1719167442831,-559.31710814,0.00016438,2]
[330211762,1719167442840,-1674.04,0.00016438,2]
[330211763,1719167442851,-7133.34,0.00016438,2]
[330211764,1719167442862,-567.36,0.00016438,2]
[330211765,1719167442872,-500.0,0.00016438,2]
[330211766,1719167442883,-500.0,0.00016438,2]
[330211767,1719167442894,-2051.58,0.00016438,2]
[330211768,1719167442904,-2910.41,0.00016438,2]
[330211769,1719167442913,-334.303043,0.00016438,2]
[330211770,1719167442924,-700.35,0.00016438,2]
[330211773,1719167443056,-334.303043,0.00016438,2]
[330211774,1719167443066,-500.0,0.00016438,2]
[330211775,1719167443075,-500.0,0.00016438,2]
[330211776,1719167443084,-1088.24,0.00016438,2]
[330211777,1719167443094,-7404.92,0.00016438,2]
[330211778,1719167443103,-500.0,0.00016438,2]
[330211779,1719167443112,-500.0,0.00016438,2]
[330211780,1719167443132,-500.0,0.00016438,2]
[330211781,1719167443144,-1325.08,0.00016438,2]
[330211782,1719167443155,-505.25704824,0.00016438,2]
[330211783,1719167443165,-1674.28,0.00016438,2]
[330211784,1719167443176,-500.0,0.00016438,2]